[Event "72nd RUS-ch Higher League 2019"]
[Site "Yaroslavl"]
[Date "2019.07.04"]
[Round "7.29"]
[White "Kanter, Eduard"]
[Black "Ibadov, Dashgyn"]
[Result "1-0"]
[ECO "D07"]
[WhiteElo "2392"]
[BlackElo "2298"]
[Annotator "NA"]
[PlyCount "113"]
[EventDate "2019.06.27"]
[EventType "swiss"]
[EventCountry "RUS"]
[SourceTitle "playchess.com"]
[Source "ChessBase"]
[SourceQuality "1"]
[TimeControl "40/5400+30:1800+30"]

1. d4 {[%emt 0:00:03]} d5 {[%emt 0:00:00]} 2. c4 {[%emt 0:00:06]} Nc6 {[%emt 0:00:00]} 3. Nc3 {[%emt 0:00:43]} dxc4 {[%emt 0:00:16]} 4. Nf3 {[%emt 0:00:24]} Nf6 {[%emt 0:02:24]} 5. h3 {[%emt 0:00:30]} Nd5 {[%emt 0:17:58]} 6. e4 {[%emt 0:04:24]} Nb6 {[%emt 0:00:44]} 7. d5 {[%emt 0:02:16]} Nb4 {[%emt 0:01:19]} 8. a3 {[%emt 0:18:14]} Nd3+ {[%emt 0:01:03]} 9. Bxd3 {[%emt 0:00:06]} cxd3 {[%emt 0:00:02]} 10. Bg5 {[%emt 0:07:51]} f6 {[%emt 0:12:02]} 11. Bf4 {[%emt 0:05:03]} e6 {[%emt 0:15:35]} 12. O-O {[%emt 0:06:06]} Bd6 {[%emt 0:02:38]} 13. Bxd6 {[%emt 0:02:36]} cxd6 {[%emt 0:00:26]} 14. dxe6 {[%emt 0:03:34]} Bxe6 {[%emt 0:02:22]} 15. Nd4 {[%emt 0:00:27]} Bc4 {[%emt 0:07:41]} 16. Nd5 {[%emt 0:10:58]} Kf7 {[%emt 0:13:53]} 17. b3 {[%emt 0:04:47]} Bxd5 {[%emt 0:01:32]} 18. exd5 {[%emt 0:00:08]} Re8 {[%emt 0:01:42]} 19. Qxd3 {[%emt 0:07:09]} Kg8 {[%emt 0:01:51]} 20. Ne6 {[%emt 0:02:17]} Qd7 {[%emt 0:01:12]} 21. Rfe1 {[%emt 0:00:05]} Qf7 {[%emt 0:00:28]} 22. Re3 {[%emt 0:02:01]} Nd7 {[%emt 0:03:12]} 23. Rae1 {[%emt 0:01:48]} Rac8 {[%emt 0:02:36]} 24. Qd4 {[%emt 0:01:24]} a6 {[%emt 0:00:43]} 25. f4 {[%emt 0:01:21]} Rc2 {[%emt 0:01:18]} 26. Rg3 {[%emt 0:03:13]} g6 {[%emt 0:03:19]} 27. Rc3 {[%emt 0:04:38]} Rxc3 {[%emt 0:00:46]} 28. Qxc3 {[%emt 0:00:02]} f5 {[%emt 0:00:50]} 29. Qc7 {[%emt 0:02:58]} Nc5 {[%emt 0:03:41]} 30. Qxd6 {[%emt 0:00:35]} Ne4 {[%emt 0:00:31]} 31. Qe5 {[%emt 0:01:09]} Nc5 {[%emt 0:01:58]} 32. Re3 {[%emt 0:01:51]} Ne4 {[%emt 0:00:01]} 33. Kh2 {[%emt 0:02:20]} Qd7 {[%emt 0:00:55]} 34. Re2 {[%emt 0:01:18]} Rc8 {[%emt 0:00:10]} 35. Ng5 {[%emt 0:01:23]} Re8 {[%emt 0:00:47]} 36. Ne6 {[%emt 0:00:36]} Rc8 {[%emt 0:00:10]} 37. b4 {[%emt 0:01:21]} h6 {[%emt 0:01:32]} 38. Re3 {[%emt 0:00:36]} Kh7 39. Qd4 {[%emt 0:00:48]} Qe7 {[%emt 0:00:39]} 40. Nc5 {[%emt 0:00:00]} Qd6 {[%emt 0:00:00]} 41. Qe5 {[%emt 0:08:17]} Rd8 {[%emt 0:06:26]} 42. Qxd6 {[%emt 0:04:33]} Rxd6 {[%emt 0:00:59]} 43. Nxe4 {[%emt 0:00:10]} fxe4 {[%emt 0:00:31]} 44. Rxe4 Kg7 45. Re7+ {[%emt 0:00:21]} Kf6 {[%emt 0:00:34]} 46. Re6+ {[%emt 0:00:50]} Rxe6 {[%emt 0:00:00]} 47. dxe6 {[%emt 0:00:04]} Kxe6 {[%emt 0:01:03]} 48. Kg3 {[%emt 0:01:04]} Kd5 {[%emt 0:02:30]} 49. Kf3 {[%emt 0:03:23]} h5 {[%emt 0:00:51]} 50. g4 h4 51. f5 {[%emt 0:01:55]} g5 {[%emt 0:01:08]} 52. Ke3 {[%emt 0:00:09]} Ke5 {[%emt 0:00:29]} 53. a4 {[%emt 0:01:04]} b6 {[%emt 0:03:03]} 54. b5 {[%emt 0:00:55]} a5 {[%emt 0:01:05]} 55. Kd3 {[%emt 0:00:42]} Kd5 {[%emt 0:00:04]} 56. Kc3 {[%emt 0:00:33]} Kc5 {[%emt 0:00:16]} 57. f6 {[%emt 0:00:10]} 1-0

[Event "72nd RUS-ch Higher League 2019"]
[Site "Yaroslavl"]
[Date "2019.07.05"]
[Round "8.1"]
[White "Sarana, Alexey"]
[Black "Alekseenko, Kirill"]
[Result "1/2-1/2"]
[ECO "D37"]
[WhiteElo "2641"]
[BlackElo "2650"]
[Annotator "RC"]
[PlyCount "80"]
[EventDate "2019.06.27"]
[EventType "swiss"]
[EventCountry "RUS"]
[SourceTitle "playchess.com"]
[Source "ChessBase"]
[SourceQuality "1"]
[TimeControl "40/5400+30:1800+30"]

1. d4 {[%emt 0:00:00]} Nf6 {[%emt 0:00:00]} 2. c4 {[%emt 0:00:00]} e6 {[%emt 0:00:10]} 3. Nf3 {[%emt 0:00:00]} d5 {[%emt 0:00:12]} 4. Nc3 {[%emt 0:00:04]} dxc4 {[%emt 0:00:14]} 5. e4 {[%emt 0:00:23]} b5 {[%emt 0:00:17]} 6. e5 {[%emt 0:00:07]} Nd5 {[%emt 0:00:16]} 7. Nxb5 {[%emt 0:00:02]} Nb6 {[%emt 0:00:16]} 8. Be2 {[%emt 0:00:06]} Nc6 {[%emt 0:00:24]} 9. O-O {[%emt 0:00:07]} Be7 {[%emt 0:00:21]} 10. Be3 {[%emt 0:00:08]} O-O {[%emt 0:00:19]} 11. Rc1 {[%emt 0:00:05]} Rb8 {[%emt 0:00:46]} 12. Nc3 {[%emt 0:00:23]} Nb4 {[%emt 0:00:57]} 13. Qd2 {[%emt 0:04:24]} Bb7 {[%emt 0:05:08]} 14. b3 {[%emt 0:02:29]} cxb3 {[%emt 0:04:19]} 15. axb3 {[%emt 0:00:27]} N6d5 {[%emt 0:18:30]} 16. Nxd5 {[%emt 0:11:40]} Bxd5 {[%emt 0:01:13]} 17. Ra1 {[%emt 0:00:12]} a6 {[%emt 0:03:07]} 18. Bc4 {[%emt 0:04:31]} Rb6 {[%emt 0:06:16]} 19. Qe2 {[%emt 0:01:41]} Qa8 {[%emt 0:03:12]} 20. Rfc1 {[%emt 0:00:42]} Rd8 {[%emt 0:04:23]} 21. Bd2 {[%emt 0:01:56]} Bxf3 {[%emt 0:11:31]} 22. Qxf3 {[%emt 0:00:25]} Qxf3 {[%emt 0:00:42]} 23. gxf3 {[%emt 0:00:03]} Nc6 {[%emt 0:00:34]} 24. Be3 {[%emt 0:01:45]} Nxd4 {[%emt 0:00:24]} 25. Bxd4 {[%emt 0:02:00]} Rxd4 {[%emt 0:00:05]} 26. Bxa6 {[%emt 0:00:24]} c5 {[%emt 0:03:12]} 27. Bc4 {[%emt 0:00:10]} g6 {[%emt 0:03:13]} 28. Rd1 {[%emt 0:02:52]} Bg5 {[%emt 0:01:53]} 29. Rxd4 {[%emt 0:00:52]} cxd4 {[%emt 0:00:05]} 30. Rd1 {[%emt 0:00:15]} Bf4 {[%emt 0:00:13]} 31. Rxd4 {[%emt 0:00:03]} Bxe5 {[%emt 0:00:05]} 32. Rd7 {[%emt 0:00:11]} Rc6 {[%emt 0:02:10]} 33. Kg2 {[%emt 0:01:24]} Kg7 {[%emt 0:00:29]} 34. h3 {[%emt 0:00:08]} Kf6 {[%emt 0:00:34]} 35. Kf1 {[%emt 0:00:51]} Rc5 {[%emt 0:01:13]} 36. Rd2 {[%emt 0:00:32]} Ra5 {[%emt 0:01:25]} 37. Kg2 {[%emt 0:00:05]} Ra1 {[%emt 0:00:31]} 38. Re2 {[%emt 0:00:05]} Rb1 {[%emt 0:02:18]} 39. Re4 {[%emt 0:00:14]} g5 {[%emt 0:04:00]} 40. Re2 {[%emt 0:00:00]} h6 {[%emt 0:00:00]} 1/2-1/2

[Event "72nd RUS-ch Higher League 2019"]
[Site "Yaroslavl"]
[Date "2019.07.05"]
[Round "8.7"]
[White "Pridorozhni, Aleksei"]
[Black "Rakhmanov, Aleksandr"]
[Result "1/2-1/2"]
[ECO "C43"]
[WhiteElo "2588"]
[BlackElo "2615"]
[Annotator "RC"]
[PlyCount "64"]
[EventDate "2019.06.27"]
[EventType "swiss"]
[EventCountry "RUS"]
[SourceTitle "playchess.com"]
[Source "ChessBase"]
[SourceQuality "1"]
[TimeControl "40/5400+30:1800+30"]

1. e4 {[%emt 0:00:07]} e5 {[%emt 0:00:00]} 2. Nf3 {[%emt 0:00:13]} Nf6 {[%emt 0:00:00]} 3. d4 {[%emt 0:00:56]} Nxe4 {[%emt 0:00:13]} 4. dxe5 {[%emt 0:00:11]} d5 {[%emt 0:00:22]} 5. Nbd2 {[%emt 0:01:46]} Nxd2 {[%emt 0:00:41]} 6. Bxd2 {[%emt 0:00:16]} c5 {[%emt 0:03:31]} 7. c4 {[%emt 0:04:04]} Nc6 {[%emt 0:03:20]} 8. Bg5 {[%emt 0:05:50]} Qa5+ {[%emt 0:03:31]} 9. Bd2 {[%emt 0:00:17]} Qd8 {[%emt 0:00:38]} 10. Bg5 {[%emt 0:13:31]} Be7 {[%emt 0:14:15]} 11. h4 {[%emt 0:17:32]} h6 {[%emt 0:06:55]} 12. cxd5 {[%emt 0:16:07]} hxg5 {[%emt 0:04:15]} 13. dxc6 {[%emt 0:00:07]} Qxd1+ {[%emt 0:08:18]} 14. Rxd1 {[%emt 0:00:16]} bxc6 {[%emt 0:01:16]} 15. h5 {[%emt 0:00:23]} Be6 {[%emt 0:08:47]} 16. b3 {[%emt 0:02:04]} Bd5 {[%emt 0:08:24]} 17. Bc4 {[%emt 0:02:11]} g4 {[%emt 0:03:56]} 18. Bxd5 {[%emt 0:01:21]} cxd5 {[%emt 0:00:04]} 19. Ng1 {[%emt 0:00:14]} d4 {[%emt 0:07:35]} 20. f3 {[%emt 0:03:21]} gxf3 {[%emt 0:01:01]} 21. Nxf3 {[%emt 0:00:08]} a5 {[%emt 0:00:24]} 22. a4 {[%emt 0:06:03]} Ra6 {[%emt 0:03:28]} 23. g4 {[%emt 0:03:13]} g6 {[%emt 0:07:29]} 24. Kd2 {[%emt 0:04:15]} gxh5 {[%emt 0:01:39]} 25. Rxh5 {[%emt 0:00:17]} Rg8 {[%emt 0:00:14]} 26. g5 {[%emt 0:00:21]} Rag6 {[%emt 0:01:04]} 27. Rg1 {[%emt 0:02:34]} Kd7 {[%emt 0:00:45]} 28. Kd3 {[%emt 0:00:14]} Rb8 {[%emt 0:00:47]} 29. Nd2 {[%emt 0:00:33]} Rbg8 {[%emt 0:01:11]} 30. Nf3 {[%emt 0:01:57]} Rb8 {[%emt 0:00:05]} 31. Nd2 {[%emt 0:00:08]} Rbg8 {[%emt 0:00:04]} 32. Nf3 {[%emt 0:00:53]} Rb8 1/2-1/2

[Event "72nd RUS-ch Higher League 2019"]
[Site "Yaroslavl"]
[Date "2019.07.05"]
[Round "8.11"]
[White "Kobalia, Mikhail"]
[Black "Iljiushenok, Ilia"]
[Result "1/2-1/2"]
[ECO "B51"]
[WhiteElo "2608"]
[BlackElo "2549"]
[Annotator "RC"]
[PlyCount "96"]
[EventDate "2019.06.27"]
[EventType "swiss"]
[EventCountry "RUS"]
[SourceTitle "playchess.com"]
[Source "ChessBase"]
[SourceQuality "1"]
[TimeControl "40/5400+30:1800+30"]

1. e4 {[%emt 0:00:00]} c5 {[%emt 0:01:42]} 2. Nf3 {[%emt 0:00:00]} d6 {[%emt 0:00:02]} 3. Bb5+ {[%emt 0:00:56]} Nd7 {[%emt 0:00:06]} 4. O-O {[%emt 0:00:06]} a6 {[%emt 0:00:02]} 5. Bd3 {[%emt 0:00:08]} Ngf6 {[%emt 0:00:24]} 6. c3 {[%emt 0:00:21]} b5 {[%emt 0:00:39]} 7. Bc2 {[%emt 0:00:07]} Bb7 {[%emt 0:00:29]} 8. Qe2 {[%emt 0:00:05]} e6 {[%emt 0:00:46]} 9. d4 {[%emt 0:00:15]} Be7 {[%emt 0:00:27]} 10. Re1 {[%emt 0:00:07]} Qc7 {[%emt 0:11:43]} 11. Bd3 {[%emt 0:01:11]} O-O {[%emt 0:01:42]} 12. Nbd2 {[%emt 0:01:10]} Rfe8 {[%emt 0:01:57]} 13. Nf1 {[%emt 0:01:35]} Bc6 {[%emt 0:06:22]} 14. Ng3 {[%emt 0:02:35]} Qb7 {[%emt 0:00:46]} 15. Ng5 {[%emt 0:07:18]} Nf8 {[%emt 0:22:36]} 16. e5 {[%emt 0:02:00]} dxe5 {[%emt 0:01:28]} 17. dxe5 {[%emt 0:00:03]} N6d7 {[%emt 0:00:46]} 18. Qh5 {[%emt 0:07:54]} Bxg5 {[%emt 0:07:20]} 19. Qxg5 {[%emt 0:00:31]} Ng6 {[%emt 0:04:07]} 20. Bxg6 {[%emt 0:07:48]} fxg6 {[%emt 0:03:12]} 21. f3 {[%emt 0:00:13]} c4 {[%emt 0:03:37]} 22. Be3 {[%emt 0:07:11]} h6 {[%emt 0:00:41]} 23. Qf4 {[%emt 0:00:46]} g5 {[%emt 0:00:33]} 24. Qd4 {[%emt 0:00:14]} Bd5 {[%emt 0:05:03]} 25. Rad1 {[%emt 0:20:05]} Qc7 {[%emt 0:06:51]} 26. Nh5 {[%emt 0:05:41]} Qxe5 {[%emt 0:02:38]} 27. Qg4 {[%emt 0:07:01]} Nf6 {[%emt 0:00:55]} 28. Qh3 {[%emt 0:00:29]} Nxh5 {[%emt 0:01:24]} 29. Qxh5 {[%emt 0:00:02]} Qf6 {[%emt 0:01:04]} 30. Rd4 {[%emt 0:05:30]} Qf7 {[%emt 0:02:20]} 31. Qg4 {[%emt 0:00:56]} Rad8 {[%emt 0:06:58]} 32. Qg3 {[%emt 0:02:57]} e5 {[%emt 0:02:44]} 33. Rd2 {[%emt 0:00:07]} e4 {[%emt 0:01:18]} 34. f4 {[%emt 0:07:14]} gxf4 {[%emt 0:00:04]} 35. Bxf4 {[%emt 0:00:02]} Kh7 {[%emt 0:00:28]} 36. Red1 {[%emt 0:00:57]} Qe6 {[%emt 0:01:13]} 37. Be3 {[%emt 0:00:51]} Rd7 {[%emt 0:01:19]} 38. h3 {[%emt 0:02:47]} Rf8 {[%emt 0:00:32]} 39. Rf2 {[%emt 0:05:07]} Rxf2 {[%emt 0:00:27]} 40. Qxf2 {[%emt 0:00:00]} Rf7 {[%emt 0:00:00]} 41. Qh4 {[%emt 0:02:51]} Qe5 {[%emt 0:04:42]} 42. Bd4 {[%emt 0:01:29]} Qf5 {[%emt 0:00:15]} 43. Be3 {[%emt 0:00:09]} Rf6 {[%emt 0:02:10]} 44. Kh2 {[%emt 0:01:52]} Bc6 {[%emt 0:04:39]} 45. Kg1 {[%emt 0:08:47]} Qe5 {[%emt 0:03:56]} 46. Rf1 {[%emt 0:02:53]} Rg6 {[%emt 0:05:34]} 47. Rf8 {[%emt 0:04:19]} Qd6 {[%emt 0:12:15]} 48. Qd8 {[%emt 0:03:33]} Qxd8 {[%emt 0:00:23]} 1/2-1/2

[Event "72nd RUS-ch Higher League 2019"]
[Site "Yaroslavl"]
[Date "2019.07.05"]
[Round "8.12"]
[White "Salemgareev, Tagir"]
[Black "Romanov, Evgeny"]
[Result "1/2-1/2"]
[ECO "A50"]
[WhiteElo "2412"]
[BlackElo "2577"]
[Annotator "ChessBase"]
[PlyCount "84"]
[EventDate "2019.06.27"]
[EventType "swiss"]
[EventCountry "RUS"]
[SourceTitle "playchess.com"]
[Source "ChessBase"]
[SourceQuality "1"]
[TimeControl "40/5400+30:1800+30"]

1. d4 {[%emt 0:02:44]} Nf6 {[%emt 0:00:00]} 2. c4 {[%emt 0:00:04]} b6 {[%emt 0:00:00]} 3. f3 {[%emt 0:00:39]} Bb7 {[%emt 0:00:39]} 4. e4 {[%emt 0:01:39]} e6 {[%emt 0:00:06]} 5. Bd3 {[%emt 0:00:50]} d5 {[%emt 0:00:41]} 6. cxd5 {[%emt 0:00:15]} exd5 {[%emt 0:00:08]} 7. e5 {[%emt 0:00:05]} Nfd7 {[%emt 0:00:06]} 8. f4 {[%emt 0:00:15]} c5 {[%emt 0:01:54]} 9. Nf3 {[%emt 0:00:21]} Nc6 {[%emt 0:03:20]} 10. O-O {[%emt 0:01:44]} Be7 {[%emt 0:03:56]} 11. a3 {[%emt 0:10:51]} Nxd4 {[%emt 0:07:41]} 12. Nxd4 {[%emt 0:00:12]} cxd4 {[%emt 0:00:05]} 13. b4 {[%emt 0:04:12]} a5 {[%emt 0:04:32]} 14. Bb2 {[%emt 0:05:30]} axb4 {[%emt 0:04:24]} 15. axb4 {[%emt 0:00:09]} Rxa1 {[%emt 0:01:16]} 16. Bxa1 {[%emt 0:00:35]} Bxb4 {[%emt 0:14:42]} 17. Bf5 {[%emt 0:18:41]} Be7 {[%emt 0:06:09]} 18. Qa4 {[%emt 0:05:43]} Qc7 {[%emt 0:05:01]} 19. Bxd4 {[%emt 0:01:13]} Qc6 {[%emt 0:02:53]} 20. Qxc6 {[%emt 0:09:34]} Bxc6 {[%emt 0:00:11]} 21. Nc3 {[%emt 0:00:03]} Nc5 {[%emt 0:09:54]} 22. Rb1 {[%emt 0:03:41]} Bd8 {[%emt 0:00:48]} 23. Bg4 {[%emt 0:09:08]} O-O {[%emt 0:04:30]} 24. f5 {[%emt 0:00:58]} Bc7 {[%emt 0:02:38]} 25. Bf3 {[%emt 0:10:29]} Rd8 {[%emt 0:06:09]} 26. Nb5 {[%emt 0:03:00]} Bxb5 {[%emt 0:10:15]} 27. Rxb5 {[%emt 0:00:05]} g6 {[%emt 0:01:52]} 28. g4 {[%emt 0:00:50]} Nd3 {[%emt 0:03:27]} 29. Rxd5 {[%emt 0:05:08]} Rxd5 {[%emt 0:01:34]} 30. Bxd5 {[%emt 0:00:04]} Nxe5 {[%emt 0:00:15]} 31. Bxe5 {[%emt 0:00:27]} Bxe5 {[%emt 0:00:02]} 32. fxg6 {[%emt 0:00:34]} hxg6 {[%emt 0:00:06]} 33. Kg2 {[%emt 0:00:38]} Kg7 {[%emt 0:01:52]} 34. g5 {[%emt 0:00:21]} b5 {[%emt 0:01:09]} 35. h4 {[%emt 0:00:15]} b4 {[%emt 0:00:41]} 36. Kf3 {[%emt 0:00:09]} f5 {[%emt 0:01:05]} 37. gxf6+ {[%emt 0:00:06]} Kxf6 {[%emt 0:00:24]} 38. Kg4 {[%emt 0:00:07]} Bc3 {[%emt 0:00:18]} 39. Bb3 {[%emt 0:00:09]} Bd2 {[%emt 0:00:33]} 40. Bc2 {[%emt 0:00:00]} Bh6 {[%emt 0:00:00]} 41. Bb1 {[%emt 0:00:33]} b3 {[%emt 0:02:19]} 42. Bd3 {[%emt 0:00:29]} b2 {[%emt 0:00:46]} 1/2-1/2

[Event "72nd RUS-ch Higher League 2019"]
[Site "Yaroslavl"]
[Date "2019.07.05"]
[Round "8.13"]
[White "Petrov, Nikita"]
[Black "Frolyanov, Dmitry"]
[Result "1-0"]
[ECO "A13"]
[WhiteElo "2610"]
[BlackElo "2538"]
[Annotator "RC"]
[PlyCount "119"]
[EventDate "2019.06.27"]
[EventType "swiss"]
[EventCountry "RUS"]
[SourceTitle "playchess.com"]
[Source "ChessBase"]
[SourceQuality "1"]
[TimeControl "40/5400+30:1800+30"]

1. c4 {[%emt 0:00:00]} e6 {[%emt 0:00:00]} 2. Nf3 {[%emt 0:00:00]} d5 {[%emt 0:00:00]} 3. g3 {[%emt 0:00:28]} Nf6 {[%emt 0:00:00]} 4. Bg2 {[%emt 0:00:26]} dxc4 {[%emt 0:00:11]} 5. Qa4+ {[%emt 0:00:56]} c6 {[%emt 0:00:23]} 6. Qxc4 {[%emt 0:00:21]} b5 {[%emt 0:00:15]} 7. Qb3 {[%emt 0:01:23]} Bb7 {[%emt 0:00:53]} 8. O-O {[%emt 0:02:04]} Nbd7 {[%emt 0:01:18]} 9. d4 {[%emt 0:00:29]} Be7 {[%emt 0:00:52]} 10. Rd1 {[%emt 0:04:07]} O-O {[%emt 0:01:58]} 11. Ne5 {[%emt 0:04:14]} Qc7 {[%emt 0:30:29]} 12. Nxd7 {[%emt 0:13:40]} Nxd7 {[%emt 0:00:08]} 13. Nc3 {[%emt 0:02:12]} b4 {[%emt 0:04:20]} 14. Bf4 {[%emt 0:12:15]} Qb6 {[%emt 0:05:00]} 15. Na4 {[%emt 0:32:15]} Qb5 {[%emt 0:01:39]} 16. Rac1 {[%emt 0:01:07]} Rac8 {[%emt 0:06:43]} 17. Nc3 {[%emt 0:03:50]} Qb6 {[%emt 0:09:41]} 18. Ne4 {[%emt 0:01:03]} c5 {[%emt 0:00:35]} 19. Nd6 {[%emt 0:03:40]} Bxd6 {[%emt 0:04:09]} 20. Bxd6 {[%emt 0:02:07]} Qxd6 {[%emt 0:02:06]} 21. Bxb7 {[%emt 0:00:07]} Rb8 {[%emt 0:00:34]} 22. dxc5 {[%emt 0:00:41]} Nxc5 {[%emt 0:00:29]} 23. Rxd6 {[%emt 0:02:19]} Nxb3 {[%emt 0:00:04]} 24. Rc7 {[%emt 0:00:19]} Nc1 {[%emt 0:01:39]} 25. Bf3 {[%emt 0:04:53]} Nxa2 {[%emt 0:00:12]} 26. Ra6 {[%emt 0:01:35]} b3 {[%emt 0:00:38]} 27. Raxa7 {[%emt 0:00:08]} Nb4 {[%emt 0:05:59]} 28. Rab7 {[%emt 0:00:54]} Rxb7 {[%emt 0:10:06]} 29. Rxb7 {[%emt 0:00:04]} Nc2 {[%emt 0:00:04]} 30. Rxb3 {[%emt 0:02:33]} Nd4 {[%emt 0:00:17]} 31. Rd3 {[%emt 0:01:30]} e5 {[%emt 0:01:24]} 32. Kg2 {[%emt 0:03:39]} Rb8 {[%emt 0:00:46]} 33. Rd2 {[%emt 0:00:15]} Nxf3 {[%emt 0:06:25]} 34. Kxf3 {[%emt 0:00:05]} f5 {[%emt 0:00:12]} 35. e3 {[%emt 0:00:32]} Kf7 {[%emt 0:00:22]} 36. Ke2 {[%emt 0:00:05]} Kf6 {[%emt 0:00:37]} 37. Kd1 {[%emt 0:00:26]} f4 {[%emt 0:02:00]} 38. exf4 {[%emt 0:01:27]} exf4 {[%emt 0:00:04]} 39. Kc2 {[%emt 0:00:12]} fxg3 {[%emt 0:03:05]} 40. fxg3 {[%emt 0:00:00]} Rc8+ {[%emt 0:00:00]} 41. Kb1 {[%emt 0:01:33]} Rb8 {[%emt 0:00:33]} 42. Rd3 {[%emt 0:09:32]} Ke6 {[%emt 0:05:19]} 43. b3 {[%emt 0:00:24]} g5 {[%emt 0:01:53]} 44. Kc2 {[%emt 0:03:04]} Rc8+ {[%emt 0:03:46]} 45. Rc3 {[%emt 0:02:52]} Rf8 {[%emt 0:00:38]} 46. Kb2 {[%emt 0:00:43]} Kd7 {[%emt 0:09:38]} 47. h3 {[%emt 0:02:56]} h5 {[%emt 0:03:52]} 48. b4 {[%emt 0:02:54]} Rf2+ 49. Kb3 g4 {[%emt 0:05:20]} 50. hxg4 {[%emt 0:01:13]} hxg4 {[%emt 0:00:04]} 51. b5 {[%emt 0:00:08]} Rf1 {[%emt 0:00:59]} 52. Kb4 {[%emt 0:00:55]} Rf3 {[%emt 0:00:56]} 53. b6 {[%emt 0:02:27]} Rf6 {[%emt 0:00:09]} 54. Ka5 {[%emt 0:05:47]} Rf5+ {[%emt 0:00:09]} 55. Ka6 {[%emt 0:00:57]} Rf3 {[%emt 0:00:15]} 56. Rc7+ {[%emt 0:00:37]} Kd6 {[%emt 0:04:43]} 57. Rc4 {[%emt 0:02:34]} Rxg3 {[%emt 0:01:27]} 58. Ra4 {[%emt 0:00:02]} Kc6 {[%emt 0:01:32]} 59. b7 {[%emt 0:00:44]} Rb3 {[%emt 0:01:46]} 60. Rc4+ {[%emt 0:00:04]} 1-0

[Event "72nd RUS-ch Higher League 2019"]
[Site "Yaroslavl"]
[Date "2019.07.05"]
[Round "8.14"]
[White "Lysyj, Igor"]
[Black "Drygalov, Andrey"]
[Result "1/2-1/2"]
[ECO "D85"]
[WhiteElo "2623"]
[BlackElo "2494"]
[Annotator "RC"]
[PlyCount "48"]
[EventDate "2019.06.27"]
[EventType "swiss"]
[EventCountry "RUS"]
[SourceTitle "playchess.com"]
[Source "ChessBase"]
[SourceQuality "1"]
[TimeControl "40/5400+30:1800+30"]

1. d4 {[%emt 0:00:47]} Nf6 {[%emt 0:00:00]} 2. c4 {[%emt 0:00:04]} g6 {[%emt 0:00:00]} 3. Nc3 {[%emt 0:00:05]} d5 {[%emt 0:00:00]} 4. cxd5 {[%emt 0:00:06]} Nxd5 {[%emt 0:00:00]} 5. e4 {[%emt 0:00:05]} Nxc3 {[%emt 0:00:00]} 6. bxc3 {[%emt 0:00:05]} Bg7 {[%emt 0:00:00]} 7. Bg5 {[%emt 0:00:07]} c5 {[%emt 0:00:00]} 8. Rc1 {[%emt 0:00:04]} O-O {[%emt 0:00:11]} 9. Nf3 {[%emt 0:00:05]} Bg4 {[%emt 0:00:16]} 10. d5 {[%emt 0:00:07]} Qd6 {[%emt 0:00:05]} 11. Be2 {[%emt 0:00:15]} Bxf3 {[%emt 0:00:08]} 12. Bxf3 {[%emt 0:00:20]} b5 {[%emt 0:00:04]} 13. O-O {[%emt 0:02:07]} Nd7 {[%emt 0:00:25]} 14. Qd2 {[%emt 0:00:27]} c4 {[%emt 0:02:37]} 15. Qe3 {[%emt 0:01:15]} Nc5 {[%emt 0:11:27]} 16. Be2 {[%emt 0:04:03]} e5 {[%emt 0:00:53]} 17. dxe6 {[%emt 0:06:16]} Nxe6 {[%emt 0:00:45]} 18. Rfd1 {[%emt 0:01:05]} Qa3 {[%emt 0:06:27]} 19. Bh4 {[%emt 0:08:50]} Rfe8 {[%emt 0:22:39]} 20. Rd5 {[%emt 0:17:34]} Nc7 {[%emt 0:11:40]} 21. Rd7 {[%emt 0:05:32]} Ne6 {[%emt 0:00:35]} 22. Rd5 {[%emt 0:24:48]} Nc7 {[%emt 0:03:25]} 23. Rd7 {[%emt 0:00:04]} Ne6 {[%emt 0:00:02]} 24. Rd5 {[%emt 0:00:06]} Nc7 {[%emt 0:00:04]} 1/2-1/2

[Event "72nd RUS-ch Higher League 2019"]
[Site "Yaroslavl"]
[Date "2019.07.05"]
[Round "8.15"]
[White "Yanchenko, Roman"]
[Black "Timofeev, Artyom"]
[Result "1/2-1/2"]
[ECO "D30"]
[WhiteElo "2478"]
[BlackElo "2608"]
[Annotator "RC"]
[PlyCount "57"]
[EventDate "2019.06.27"]
[EventType "swiss"]
[EventCountry "RUS"]
[SourceTitle "playchess.com"]
[Source "ChessBase"]
[SourceQuality "1"]
[TimeControl "40/5400+30:1800+30"]

1. d4 {[%emt 0:00:00]} d5 {[%emt 0:00:00]} 2. Nf3 {[%emt 0:00:00]} e6 {[%emt 0:00:20]} 3. c4 {[%emt 0:00:03]} c6 {[%emt 0:00:17]} 4. e3 {[%emt 0:00:52]} Nf6 {[%emt 0:03:00]} 5. Nbd2 {[%emt 0:00:59]} Be7 {[%emt 0:05:33]} 6. Bd3 {[%emt 0:00:18]} Nbd7 {[%emt 0:00:54]} 7. O-O {[%emt 0:04:05]} O-O {[%emt 0:03:13]} 8. b3 {[%emt 0:01:59]} b6 {[%emt 0:04:18]} 9. cxd5 {[%emt 0:04:21]} cxd5 {[%emt 0:04:22]} 10. Bb2 {[%emt 0:00:15]} Bb7 {[%emt 0:00:47]} 11. Ne5 {[%emt 0:00:25]} Ne4 {[%emt 0:04:04]} 12. Nxe4 {[%emt 0:06:48]} dxe4 {[%emt 0:00:32]} 13. Bb5 {[%emt 0:00:04]} Nxe5 {[%emt 0:05:30]} 14. dxe5 {[%emt 0:00:05]} a6 {[%emt 0:01:03]} 15. Be2 {[%emt 0:00:19]} Bd5 {[%emt 0:00:25]} 16. Rc1 {[%emt 0:00:35]} b5 {[%emt 0:02:53]} 17. Rc2 {[%emt 0:08:11]} Qd7 {[%emt 0:09:33]} 18. Qd2 {[%emt 0:05:01]} Rac8 {[%emt 0:04:40]} 19. Rxc8 {[%emt 0:00:19]} Rxc8 {[%emt 0:00:26]} 20. Rc1 {[%emt 0:00:04]} h6 {[%emt 0:06:01]} 21. Rxc8+ {[%emt 0:02:57]} Qxc8 {[%emt 0:00:07]} 22. Qc3 {[%emt 0:01:01]} Qb7 {[%emt 0:02:35]} 23. g3 {[%emt 0:02:57]} Kf8 {[%emt 0:08:55]} 24. h4 {[%emt 0:00:20]} Ke8 {[%emt 0:00:41]} 25. Qa5 {[%emt 0:02:19]} Bd8 {[%emt 0:02:49]} 26. Qb4 {[%emt 0:00:07]} Be7 {[%emt 0:08:41]} 27. Qa5 {[%emt 0:00:04]} Bd8 {[%emt 0:00:25]} 28. Qb4 {[%emt 0:00:04]} Be7 {[%emt 0:01:39]} 29. Qa5 {[%emt 0:00:11]} 1/2-1/2